bitfinex/quotes_SOLUSD_20250506
["timestamp","ask_amount","ask_price","bid_price","bid_amount"]
[1746506819434,33.2974327,145.18,145.16,20.18879962]
[1746506822538,33.2974327,145.18,145.16,13.3]
[1746506822539,33.2974327,145.17,145.16,13.3]
[1746506828569,33.2974327,145.17,145.14,101.18970466]
[1746506829247,33.2974327,145.16,145.14,94.3]
[1746506829448,33.2974327,145.15,145.14,94.3]
[1746506829648,33.2974327,145.15,145.14,13.3]
[1746506832675,40.18686101,145.15,145.11,81.0]
[1746506832874,14.64778384,145.13,145.1,101.19166309]
[1746506837872,9.38218638,145.13,145.1,101.19166309]
[1746506848673,9.38218638,145.12,145.1,101.19166309]
[1746506849069,9.38218638,145.13,145.1,101.19166309]
[1746506849783,9.38218638,145.13,145.1,94.3]
[1746506859879,9.38218638,145.13,145.11,13.3]
[1746506864390,9.38218638,145.12,145.11,13.3]
[1746506864580,28.03183524,145.12,145.11,13.3]
[1746506864779,28.03183524,145.12,145.09,13.3]
[1746506864977,9.38218638,145.1,145.09,13.3]
[1746506867595,9.38218638,145.11,145.09,13.3]
[1746506871279,9.38218638,145.1,145.09,13.3]
[1746506871602,18.64964886,145.09,145.07,94.3]
[1746506871793,9.38218638,145.08,145.07,13.3]
[1746506872003,28.03183524,145.08,145.07,13.3]
[1746506878200,54.03183524,145.08,145.07,13.3]
[1746506882908,44.64964886,145.08,145.07,13.3]
[1746506883214,54.03183524,145.08,145.07,13.3]
[1746506891721,18.64964886,145.08,145.07,13.3]
[1746506891925,9.38218638,145.09,145.07,20.19322396]
[1746506894834,28.03183524,145.1,145.07,20.19322396]
[1746506899029,18.64964886,145.1,145.07,20.19322396]
[1746506899231,28.03183524,145.1,145.07,20.19322396]
[1746506903623,18.64964886,145.1,145.07,20.19322396]
[1746506903814,28.03183524,145.1,145.07,20.19322396]
[1746506930679,18.64964886,145.08,145.07,20.19322396]
[1746506930856,9.38218638,145.08,145.07,20.19322396]
[1746506936879,9.38218638,145.09,145.07,20.19322396]
[1746506939584,28.03183524,145.1,145.07,20.19322396]
[1746506942388,18.64964886,145.1,145.07,20.19322396]
[1746506942685,28.03183524,145.1,145.07,20.19322396]
[1746506944588,9.38218638,145.09,145.07,20.19322396]
[1746506949598,9.38218638,145.09,145.06,20.19369915]
[1746506958781,18.64964886,145.1,145.04,6.89455861]
[1746506958782,28.03183524,145.07,145.04,6.89455861]
[1746506958982,18.64964886,145.05,145.04,6.89455861]
[1746506959502,28.03183524,145.07,145.04,6.89455861]
[1746506962913,18.64964886,145.07,145.04,6.89455861]
[1746506963408,28.03183524,145.07,145.04,6.89455861]
[1746506971900,18.64964886,145.07,145.04,16.27674499]
[1746506972107,18.64964886,145.07,145.05,9.38218638]
[1746506972505,41.69468638,145.1,145.06,9.38218638]
[1746506972713,18.64964886,145.09,145.06,90.38218638]
[1746506973923,28.03183524,145.09,145.07,6.89322396]
[1746506982543,28.03183524,145.09,145.06,6.89369915]
[1746506985140,28.03183524,145.09,145.06,20.19369915]
[1746506995950,6.54636157,145.14,145.08,9.38218638]
[1746506996147,6.54636157,145.14,145.1,9.38218638]
[1746506996148,6.4042,145.14,145.1,9.38218638]
[1746506996325,6.4042,145.14,145.11,9.38218638]
[1746506996631,18.64964886,145.13,145.11,103.68218638]
[1746506996828,18.64964886,145.13,145.11,94.3]
[1746506997553,9.38218638,145.12,145.11,94.3]
[1746507000550,9.38218638,145.12,145.11,13.3]
[1746507000854,9.38218638,145.12,145.07,94.3]
[1746507000855,18.64964886,145.11,145.07,94.3]
[1746507001047,28.03183524,145.08,145.07,13.3]
[1746507001240,28.03183524,145.08,145.07,20.19322396]
[1746507001432,18.64964886,145.08,145.07,20.19322396]
[1746507004353,9.38218638,145.11,145.07,29.57541034]
[1746507004560,18.64964886,145.12,145.09,9.38218638]
[1746507005654,28.03183524,145.13,145.1,6.89179875]
[1746507005837,18.64964886,145.13,145.1,97.27398513]
[1746507006240,18.64964886,145.15,145.12,9.38218638]
[1746507006561,9.38218638,145.17,145.13,22.68218638]
[1746507006740,9.38218638,145.17,145.13,103.68218638]
[1746507006741,18.64964886,145.16,145.13,103.68218638]
[1746507006941,9.38218638,145.17,145.13,103.68218638]
[1746507007164,9.38218638,145.16,145.13,94.3]
[1746507007364,28.03183524,145.16,145.13,94.3]
[1746507007660,28.03183524,145.16,145.14,6.8898994]
[1746507007846,33.30210803,145.16,145.14,6.8898994]
[1746507008042,18.64964886,145.15,145.13,101.19023797]
[1746507008361,33.30210803,145.14,145.13,94.3]
[1746507008562,33.30210803,145.14,145.13,13.3]
[1746507009860,18.64964886,145.14,145.13,13.3]
[1746507010336,18.64964886,145.17,145.13,34.84283331]
[1746507010634,33.30210803,145.17,145.13,115.84283331]
[1746507011850,18.64964886,145.17,145.14,14.65245917]
[1746507013452,18.64964886,145.17,145.15,6.88942473]
[1746507015558,18.64964886,145.17,145.15,87.88942473]
[1746507015741,33.30210803,145.17,145.15,87.88942473]
[1746507016955,14.65245917,145.16,145.15,81.0]
[1746507020461,18.64964886,145.17,145.15,81.0]
[1746507020644,14.65245917,145.16,145.15,81.0]
[1746507021647,18.64964886,145.17,145.14,87.88979823]
[1746507021847,33.30210803,145.17,145.14,87.88979823]
[1746507022047,33.30210803,145.17,145.14,81.0]
[1746507024069,18.64964886,145.15,145.14,81.0]
[1746507024562,33.30210803,145.17,145.14,87.88983576]
[1746507025764,18.64964886,145.17,145.14,87.88983576]
[1746507025956,33.30210803,145.17,145.14,87.88983576]
[1746507027576,18.64964886,145.15,145.14,81.0]
[1746507028071,18.64964886,145.17,145.14,81.0]
[1746507028373,33.30210803,145.17,145.14,87.88989902]
[1746507029951,18.64964886,145.15,145.14,81.0]
[1746507034973,14.65245917,145.15,145.14,81.0]
[1746507036474,14.65245917,145.16,145.14,81.0]
[1746507039454,18.64964886,145.17,145.13,101.1902765]
[1746507039665,14.65245917,145.16,145.13,101.1902765]
[1746507042280,18.64964886,145.17,145.13,101.1902765]
[1746507042587,14.65245917,145.16,145.13,101.1902765]
[1746507043780,9.37814152,145.16,145.13,101.1902765]
[1746507045281,9.37814152,145.16,145.13,94.3]
[1746507045685,9.37814152,145.16,145.13,101.19030233]
[1746507050183,18.64964886,145.15,145.13,101.19030233]
[1746507052185,18.64964886,145.17,145.13,110.56844385]
[1746507052492,18.64964886,145.17,145.14,9.37814152]
[1746507052986,18.64964886,145.17,145.13,110.56844385]
[1746507054594,28.02779038,145.17,145.13,110.56844385]
[1746507058196,9.37814152,145.16,145.13,101.19030233]
[1746507058374,18.64964886,145.15,145.13,101.19030233]
[1746507058580,9.37814152,145.15,145.13,101.19030233]
[1746507060797,18.64964886,145.15,145.13,101.19030233]
[1746507061788,28.02779038,145.17,145.13,110.56844385]
[1746507065896,18.64964886,145.15,145.13,101.19030233]
[1746507067203,28.02779038,145.17,145.13,110.56844385]
[1746507072502,18.64964886,145.17,145.13,110.56844385]
[1746507072693,28.02779038,145.17,145.13,110.56844385]
[1746507073299,28.02779038,145.17,145.14,20.22969046]
[1746507078508,28.02779038,145.17,145.14,101.22969046]
[1746507080006,18.64964886,145.17,145.14,101.22969046]
[1746507082716,22.71954102,145.23,145.15,9.37814152]
[1746507082717,9.37814152,145.21,145.15,9.37814152]
[1746507082895,18.64964886,145.18,145.16,9.37814152]
[1746507083096,18.64964886,145.18,145.16,90.37814152]
[1746507083792,18.64964886,145.18,145.17,6.88847558]
[1746507087513,18.64964886,145.18,145.17,87.88847558]
[1746507089217,18.64964886,145.19,145.17,87.88847558]
[1746507092302,28.02779038,145.19,145.17,81.0]
[1746507099543,28.02779038,145.19,145.15,6.88933876]
[1746507099544,18.64964886,145.17,145.15,81.0]
[1746507102147,18.64964886,145.17,145.16,13.28]
[1746507105447,18.64964886,145.19,145.16,13.28]
[1746507105649,28.02779038,145.19,145.16,94.28]
[1746507106641,18.64964886,145.19,145.16,101.16887542]
[1746507106841,18.64964886,145.19,145.16,110.54701694]
[1746507107049,8.10846157,145.22,145.18,9.37814152]
[1746507107050,18.64964886,145.21,145.18,9.37814152]
[1746507107248,18.64964886,145.21,145.19,9.37814152]
[1746507107955,9.37814152,145.23,145.19,90.37814152]
[1746507108152,28.02779038,145.25,145.19,81.0]
[1746507108456,54.02779038,145.25,145.2,16.26519386]
[1746507108651,54.02779038,145.25,145.21,13.28]
[1746507108958,9.37814152,145.24,145.21,13.28]
[1746507109535,9.37814152,145.24,145.21,20.1665413]
[1746507111229,9.37814152,145.24,145.21,13.28]
[1746507111643,9.37814152,145.24,145.21,94.28]
[1746507117079,9.37814152,145.23,145.21,94.28]
[1746507122086,9.37814152,145.23,145.21,101.16651276]
[1746507122277,28.02779038,145.24,145.21,101.16651276]
[1746507123569,28.02779038,145.24,145.21,94.28]
[1746507126183,28.02779038,145.24,145.21,101.16652467]
[1746507126582,28.02779038,145.24,145.21,94.28]
[1746507131574,28.02779038,145.22,145.21,94.28]
[1746507132088,18.64964886,145.22,145.21,94.28]
[1746507132696,28.02779038,145.24,145.21,94.28]
[1746507137696,28.02779038,145.24,145.21,81.0]
[1746507139098,34.91301779,145.24,145.21,81.0]
[1746507141195,28.02779038,145.24,145.21,81.0]
[1746507143606,34.91299461,145.24,145.21,81.0]
[1746507143806,18.64964886,145.22,145.21,81.0]
[1746507149109,28.02779038,145.24,145.21,81.0]
[1746507149312,34.91297125,145.24,145.21,81.0]
[1746507149808,9.37814152,145.22,145.21,81.0]
[1746507149990,9.37814152,145.22,145.16,136.4065]
[1746507149991,18.64964886,145.19,145.16,81.0]
[1746507150197,18.64964886,145.16,145.13,110.54821609]
[1746507151610,18.64964886,145.16,145.13,101.17007457]
[1746507151812,18.64964886,145.16,145.13,110.54821609]
[1746507152721,28.02779038,145.16,145.13,101.17007457]
[1746507154011,18.64964886,145.16,145.13,110.54821609]
[1746507156511,18.64964886,145.16,145.15,6.88942473]
[1746507156807,18.64964886,145.17,145.15,6.88942473]
[1746507159312,18.64964886,145.2,145.16,9.37814152]
[1746507159618,18.64964886,145.2,145.17,9.37814152]
[1746507159801,18.64964886,145.2,145.18,13.28]
[1746507160496,18.64964886,145.2,145.19,9.37814152]
[1746507160699,18.64964886,145.2,145.19,90.37814152]
[1746507161815,18.64964886,145.2,145.19,97.2656682]
[1746507164618,18.64964886,145.2,145.19,87.88752668]
[1746507165119,35.37814152,145.22,145.19,87.88752668]
[1746507165321,18.64964886,145.23,145.2,9.37814152]
[1746507165499,18.64964886,145.23,145.2,90.37814152]
[1746507167418,18.64964886,145.23,145.21,6.88657805]
[1746507167723,9.37814152,145.23,145.21,6.88657805]
[1746507168524,9.37814152,145.23,145.21,87.88657805]
[1746507171621,9.37814152,145.23,145.21,81.0]
[1746507172125,9.37814152,145.23,145.21,87.8864836]
[1746507174724,9.37814152,145.23,145.21,81.0]
[1746507175724,18.64964886,145.22,145.21,81.0]
[1746507182129,18.64964886,145.22,145.21,87.88657805]
[1746507185533,18.64964886,145.24,145.21,87.88657805]
[1746507185718,28.02779038,145.24,145.21,87.88657805]
[1746507188533,18.64964886,145.24,145.21,97.26471957]
[1746507188830,28.02779038,145.24,145.21,87.88657805]
[1746507191033,18.64964886,145.22,145.21,81.0]
[1746507191334,9.37814152,145.22,145.21,81.0]
[1746507191530,18.64964886,145.22,145.21,81.0]
[1746507195120,54.16995195,145.22,145.21,81.0]
[1746507195446,18.64964886,145.21,145.17,94.28]
[1746507195642,28.02779038,145.18,145.17,94.28]
[1746507197851,35.05795305,145.18,145.17,13.28]
[1746507198739,18.64964886,145.17,145.14,81.0]
[1746507199037,18.64964886,145.15,145.14,81.0]
[1746507200445,9.37814152,145.17,145.14,81.0]
[1746507200838,18.64964886,145.17,145.14,81.0]
[1746507202850,18.64964886,145.17,145.14,87.88989426]
[1746507206953,18.64964886,145.17,145.14,97.26803578]
[1746507207136,18.64964886,145.17,145.15,9.37814152]
[1746507207641,18.64964886,145.17,145.15,90.37814152]
[1746507208153,18.64964886,145.17,145.15,97.26743053]
[1746507209459,18.64964886,145.17,145.15,87.88928901]
[1746507209654,18.64964886,145.17,145.15,97.26743053]
[1746507211434,9.37814152,145.21,145.16,9.37814152]
[1746507211744,18.64964886,145.21,145.18,9.37814152]
[1746507211946,18.64964886,145.21,145.18,22.65814152]
[1746507212145,18.64964886,145.22,145.19,9.37814152]
[1746507212336,18.64964886,145.22,145.19,90.37814152]
[1746507213154,18.64964886,145.22,145.2,6.88705234]
[1746507213938,28.02779038,145.22,145.19,87.88739236]
[1746507215154,28.02779038,145.22,145.19,81.0]
[1746507215362,9.37814152,145.21,145.19,81.0]
[1746507215875,28.02779038,145.22,145.19,81.0]
[1746507224656,28.02779038,145.22,145.19,87.88748837]
[1746507231072,18.64964886,145.22,145.19,87.88748837]
[1746507234288,18.64964886,145.22,145.19,101.16748837]
[1746507236190,18.64964886,145.22,145.19,110.54562989]
[1746507236484,18.64964886,145.22,145.21,9.37814152]
[1746507236683,18.64964886,145.25,145.21,9.37814152]
[1746507236892,18.64964886,145.25,145.23,9.37814152]
[1746507237284,18.64964886,145.25,145.23,81.0]
[1746507238175,18.64964886,145.25,145.23,87.88562926]
[1746507238397,18.64964886,145.25,145.23,81.0]
[1746507240594,18.64964886,145.25,145.22,16.2639431]
[1746507245100,18.64964886,145.25,145.23,20.14557436]
[1746507246589,18.64964886,145.25,145.23,101.14557436]
[1746507248386,18.64964886,145.25,145.23,110.52371588]
[1746507251309,18.64964886,145.25,145.23,103.63814152]
[1746507252108,18.64964886,145.25,145.23,94.26]
[1746507254711,18.64964886,145.25,145.23,101.14545156]
[1746507254911,26.0,145.26,145.23,110.52359308]
[1746507255112,18.64964886,145.28,145.25,9.37814152]
[1746507255408,44.64964886,145.28,145.25,90.37814152]
[1746507255612,54.02779038,145.28,145.25,81.0]
[1746507256081,54.02779038,145.28,145.25,87.88451064]
[1746507258116,54.02779038,145.28,145.25,81.0]
[1746507260002,9.37814152,145.26,145.25,81.0]
[1746507260407,28.02779038,145.27,145.25,81.0]
[1746507260716,18.64964886,145.27,145.25,87.88460185]
[1746507262319,8.43618083,145.3,145.25,87.88460185]
[1746507262500,28.02779038,145.28,145.25,87.88460185]
[1746507263812,18.64964886,145.28,145.25,97.26274337]
[1746507263993,54.02779038,145.3,145.26,9.37814152]
[1746507264621,54.02779038,145.3,145.26,90.37814152]
[1746507265025,54.02779038,145.3,145.26,97.26217523]
[1746507265199,54.02779038,145.3,145.26,87.88403371]
[1746507265200,9.37814152,145.29,145.26,87.88403371]
[1746507268623,9.37814152,145.28,145.26,87.88403371]
[1746507269120,9.37814152,145.28,145.26,101.14403371]
[1746507269609,9.37814152,145.28,145.26,94.26]
[1746507277130,18.64964886,145.28,145.26,94.26]
[1746507278425,18.64964886,145.28,145.26,101.1441645]
[1746507279026,28.02779038,145.28,145.26,94.26]
[1746507281309,28.02779038,145.27,145.26,94.26]
[1746507281510,54.02779038,145.27,145.26,13.26]
[1746507281729,18.64964886,145.26,145.22,94.26]
[1746507282008,9.37814152,145.23,145.22,94.26]
[1746507285935,9.37814152,145.24,145.22,94.26]
[1746507287235,18.64964886,145.24,145.22,94.26]
[1746507288131,18.64964886,145.24,145.22,101.14603342]
[1746507288324,9.37814152,145.26,145.22,110.52417494]
[1746507288934,18.64964886,145.26,145.23,9.37814152]
[1746507291034,28.02779038,145.26,145.22,110.52417494]
[1746507291236,18.64964886,145.24,145.22,94.26]
[1746507291430,18.64964886,145.23,145.22,94.26]
[1746507300947,25.53400663,145.26,145.22,103.63814152]
[1746507301136,28.02779038,145.26,145.23,9.37814152]
[1746507301348,18.64964886,145.26,145.24,9.37814152]
[1746507304356,18.64964886,145.26,145.23,16.26354654]
[1746507305544,18.64964886,145.26,145.24,16.26323412]
[1746507305747,18.64964886,145.29,145.24,16.26323412]
[1746507305920,9.37814152,145.28,145.24,97.26323412]
[1746507306125,18.64964886,145.27,145.24,97.26323412]
[1746507306527,18.64964886,145.27,145.25,9.37814152]
[1746507307048,28.02779038,145.29,145.25,16.26279455]
[1746507307555,54.02779038,145.29,145.25,16.26279455]
[1746507307845,59.27758273,145.29,145.25,6.88465303]
[1746507308031,59.27758273,145.29,145.25,21.5125869]
[1746507309148,14.62793387,145.28,145.25,6.88465303]
[1746507309527,14.62793387,145.28,145.25,87.88465303]
[1746507310760,14.62793387,145.28,145.26,13.26]
[1746507313954,33.27758273,145.27,145.26,13.26]
[1746507325173,33.27758273,145.27,145.25,81.0]
[1746507326774,18.64964886,145.28,145.25,81.0]
[1746507327075,33.27758273,145.28,145.25,81.0]
[1746507327875,18.64964886,145.26,145.25,81.0]
[1746507332979,18.64964886,145.28,145.25,81.0]
[1746507333179,18.64964886,145.26,145.25,81.0]
[1746507335256,28.01390614,145.28,145.25,81.0]
[1746507335459,35.36425728,145.29,145.25,97.24864117]
[1746507335750,18.64964886,145.28,145.26,9.36425728]
[1746507335954,18.64964886,145.28,145.26,90.36425728]
[1746507336983,18.64964886,145.28,145.26,81.0]
[1746507337287,18.64964886,145.28,145.26,87.88419664]
[1746507341296,18.64964886,145.28,145.26,81.0]
[1746507341793,9.36425728,145.28,145.26,81.0]
[1746507342172,28.01390614,145.27,145.26,81.0]
[1746507342388,18.64964886,145.26,145.24,94.26]
[1746507342576,9.36425728,145.25,145.24,13.26]
[1746507350485,28.01390614,145.25,145.24,13.26]
[1746507352493,28.01390614,145.25,145.22,81.0]
[1746507352673,28.01390614,145.23,145.22,81.0]
[1746507357783,18.64964886,145.23,145.22,81.0]
[1746507359001,18.64964886,145.23,145.22,87.88610384]
[1746507364297,18.64964886,145.23,145.22,81.0]
[1746507364508,28.01390614,145.23,145.22,81.0]
[1746507364714,18.64964886,145.22,145.2,13.26]
[1746507365008,9.36425728,145.21,145.2,13.26]
[1746507366501,18.64964886,145.2,145.17,81.0]
[1746507366685,18.64964886,145.18,145.17,81.0]
[1746507367287,44.64964886,145.23,145.17,232.15264612]
[1746507367481,6.5662,145.24,145.17,232.15264612]
[1746507367482,18.64964886,145.24,145.21,9.36425728]
[1746507367700,18.64964886,145.24,145.22,9.36425728]
[1746507367905,26.0,145.25,145.22,9.36425728]
[1746507368307,9.36425728,145.26,145.22,9.36425728]
[1746507368609,28.01390614,145.27,145.24,6.8851556]
[1746507368899,28.01390614,145.27,145.24,87.8851556]
[1746507369692,33.2815892,145.27,145.24,87.8851556]
[1746507377713,18.64964886,145.27,145.24,102.51709594]
[1746507379005,14.63194034,145.28,145.24,102.51709594]
[1746507380413,33.2815892,145.29,145.26,6.88420762]
[1746507380614,33.2815892,145.29,145.26,20.14420762]
[1746507384516,33.2815892,145.29,145.26,101.14420762]
[1746507389222,14.63194034,145.28,145.26,101.14420762]
[1746507389723,35.3611329,145.3,145.26,245.40534052]
[1746507389904,18.64964886,145.31,145.27,9.3611329]
[1746507390111,9.3611329,145.3,145.27,9.3611329]
[1746507391112,9.3611329,145.3,145.28,6.88325991]
[1746507393142,9.3611329,145.29,145.26,94.26]
[1746507393323,9.3611329,145.28,145.26,94.26]
[1746507393709,9.3611329,145.28,145.26,101.1441218]
[1746507394819,9.3611329,145.29,145.26,101.1441218]
[1746507397721,9.3611329,145.3,145.26,110.5052547]
[1746507398723,9.3611329,145.29,145.26,101.1441218]
[1746507399612,9.3611329,145.3,145.26,110.5052547]
[1746507405135,9.3611329,145.29,145.26,101.1441218]
[1746507406532,9.3611329,145.29,145.27,13.26]
[1746507406719,9.3611329,145.3,145.27,13.26]
[1746507407533,9.3611329,145.28,145.27,13.26]
[1746507408739,44.64964886,145.26,145.22,81.0]
[1746507409033,9.3611329,145.23,145.22,81.0]
[1746507409409,28.01078176,145.23,145.22,81.0]
[1746507411740,33.29094523,145.23,145.22,81.0]
[1746507412635,18.64964886,145.22,145.21,317.74]
[1746507412820,33.29094523,145.22,145.21,317.74]
[1746507413118,33.29094523,145.22,145.21,81.0]
[1746507417148,18.64964886,145.24,145.21,87.88657171]
[1746507417348,14.64129637,145.23,145.21,87.88657171]
[1746507417944,33.29094523,145.22,145.21,81.0]
[1746507423744,26.0,145.26,145.21,87.88657805]
[1746507423947,18.64964886,145.25,145.21,87.88657805]
[1746507424248,33.29094523,145.25,145.21,102.52787442]
[1746507424548,14.64129637,145.24,145.21,87.88657805]
[1746507426525,18.64964886,145.25,145.21,87.88657805]
[1746507426737,14.64129637,145.24,145.21,87.88657805]
[1746507429143,14.64129637,145.25,145.21,102.52787442]
[1746507429349,40.64129637,145.26,145.22,14.64129637]
[1746507429525,18.64964886,145.27,145.23,14.64129637]
[1746507429857,14.64129637,145.27,145.23,14.64129637]
[1746507430236,14.64129637,145.27,145.23,230.54129637]
[1746507430671,14.64129637,145.27,145.24,6.8851556]
[1746507430860,14.64129637,145.27,145.25,13.26]
[1746507433555,14.64129637,145.27,145.25,20.14437951]
[1746507433862,14.64129637,145.26,145.25,20.14437951]
[1746507434470,14.64129637,145.26,145.25,13.26]
[1746507435463,14.64129637,145.26,145.25,94.26]
[1746507437372,33.29094523,145.26,145.25,94.26]
[1746507439274,32.0273,145.28,145.25,94.26]
[1746507439275,33.29094523,145.27,145.25,101.14468158]
[1746507440570,18.64964886,145.27,145.25,101.14468158]
[1746507441972,33.29094523,145.27,145.25,101.14468158]
[1746507443573,18.64964886,145.27,145.25,101.14468158]
[1746507443875,33.29094523,145.27,145.25,101.14468158]
[1746507444462,33.29094523,145.27,145.25,94.26]
[1746507445970,28.01384246,145.27,145.25,94.26]
[1746507449071,9.3641936,145.26,145.25,94.26]
[1746507454379,9.3641936,145.26,145.25,81.0]
[1746507456086,28.01384246,145.27,145.25,87.88468158]
[1746507456386,18.64964886,145.28,145.25,87.88468158]
[1746507456578,28.01384246,145.28,145.25,87.88468158]
[1746507461101,9.3641936,145.27,145.25,87.88468158]
[1746507462890,18.64964886,145.31,145.26,9.3641936]
[1746507463099,9.3641936,145.3,145.26,90.3641936]
[1746507464176,9.3641936,145.3,145.27,6.88373373]
[1746507465593,9.3641936,145.3,145.27,97.24792733]
[1746507466397,9.3641936,145.3,145.27,87.88373373]
[1746507468808,9.3641936,145.3,145.28,20.14298992]
[1746507471596,9.3641936,145.3,145.28,101.14298992]
[1746507476302,9.3641936,145.29,145.28,94.26]
[1746507476496,28.01384246,145.29,145.28,94.26]
[1746507484005,28.01384246,145.29,145.28,13.26]
[1746507484510,18.64964886,145.28,145.27,81.0]
[1746507484809,18.64964886,145.28,145.24,13.26]
[1746507484810,28.01384246,145.28,145.24,94.26]
[1746507485005,9.3641936,145.26,145.24,94.26]
[1746507485309,28.01384246,145.27,145.24,101.14493972]
[1746507486610,18.64964886,145.27,145.24,110.50913332]
[1746507486906,28.01384246,145.27,145.24,101.14493972]
[1746507487507,18.64964886,145.27,145.24,110.50913332]
[1746507487893,28.01384246,145.27,145.24,101.14493972]
[1746507492033,18.64964886,145.25,145.24,101.14493972]
[1746507496548,9.3641936,145.28,145.24,110.50913332]
[1746507496716,18.64964886,145.28,145.24,110.50913332]
[1746507496916,28.01384246,145.28,145.24,110.50913332]
[1746507503243,28.01384246,145.28,145.26,6.88420762]
[1746507504632,28.01384246,145.27,145.26,6.88420762]
[1746507507449,28.01384246,145.27,145.26,87.88420762]
[1746507512747,28.01384246,145.27,145.26,81.0]
[1746507518646,18.64964886,145.27,145.26,81.0]
[1746507518957,28.01384246,145.27,145.26,81.0]
[1746507529172,18.64964886,145.27,145.26,81.0]
[1746507531988,28.01384246,145.27,145.26,81.0]
[1746507535387,28.01384246,145.27,145.26,87.88420762]
[1746507537479,28.01384246,145.27,145.26,6.88420762]
[1746507540364,28.01384246,145.27,145.25,13.26]
[1746507540365,18.64964886,145.26,145.25,13.26]
[1746507540562,28.01384246,145.26,145.25,13.26]
[1746507545887,28.01384246,145.26,145.25,20.14468158]
[1746507546066,18.64964886,145.26,145.25,20.14468158]
[1746507549873,18.64964886,145.26,145.25,13.26]
[1746507554976,18.64964886,145.26,145.25,20.14468158]
[1746507555493,18.64964886,145.26,145.25,101.14468158]
[1746507558413,67.28511179,145.26,145.21,13.26]
[1746507558708,9.3641936,145.23,145.21,20.14653538]
[1746507563607,9.3641936,145.23,145.21,13.26]
[1746507563786,28.01384246,145.22,145.21,13.26]
[1746507564200,18.64964886,145.22,145.21,13.26]
[1746507566002,18.64964886,145.22,145.21,20.14657805]
[1746507570213,9.3641936,145.24,145.21,20.14657805]
[1746507570422,18.64964886,145.23,145.21,20.14657805]
[1746507579530,18.64964886,145.25,145.21,20.14657805]
[1746507579715,18.64964886,145.23,145.21,29.51077165]
[1746507581832,9.3641936,145.25,145.21,29.51077165]
[1746507582008,18.64964886,145.25,145.22,9.3641936]
[1746507582204,18.64964886,145.26,145.24,9.3641936]
[1746507583135,9.3641936,145.27,145.23,9.3641936]
[1746507583436,18.64964886,145.26,145.23,9.3641936]
[1746507584635,18.64964886,145.26,145.24,6.8851556]
[1746507585041,28.01384246,145.28,145.24,16.2493492]
[1746507586637,18.64964886,145.26,145.24,6.8851556]
[1746507595541,18.64964886,145.26,145.25,13.24]
[1746507596034,18.64964886,145.26,145.25,20.12468158]
[1746507600428,28.01384246,145.26,145.25,20.12468158]
[1746507601230,18.64964886,145.26,145.25,20.12468158]
[1746507607359,18.64964886,145.26,145.25,13.24]
[1746507607832,28.01384246,145.26,145.25,13.24]
[1746507609530,18.64964886,145.26,145.25,13.24]
[1746507611925,9.16865677,145.32,145.25,13.24]
[1746507612130,1.7375031,145.33,145.27,9.3641936]
[1746507612353,11.1016967,145.33,145.28,9.3641936]
[1746507612557,18.64964886,145.32,145.28,9.3641936]
[1746507613159,18.64964886,145.32,145.29,6.88278615]
[1746507613732,28.01384246,145.32,145.29,6.88278615]
[1746507617554,18.64964886,145.3,145.29,6.88278615]
[1746507620456,18.64964886,145.3,145.28,6.88325991]
[1746507620658,28.01384246,145.29,145.28,6.88325991]
[1746507622669,28.01384246,145.29,145.27,17.20932442]
[1746507624046,18.64964886,145.29,145.27,17.20932442]
[1746507624559,18.64964886,145.29,145.27,24.09305815]
[1746507625841,18.64964886,145.29,145.27,17.20932442]
[1746507626981,18.64964886,145.29,145.27,24.09305815]
[1746507630366,18.64964886,145.29,145.28,13.24]
[1746507631467,27.7375031,145.33,145.28,20.12325991]
[1746507631770,28.01384246,145.32,145.28,29.48745351]
[1746507634580,18.64964886,145.32,145.28,46.69560328]
[1746507635471,28.01384246,145.32,145.28,46.69560328]
[1746507635975,1.7375031,145.33,145.3,9.3641936]
[1746507636182,1.7375031,145.33,145.31,9.3641936]
[1746507636353,1.7375031,145.33,145.3,9.3641936]
[1746507637780,1.7375031,145.33,145.31,6.88183882]
[1746507641791,11.1016967,145.33,145.31,6.88183882]
[1746507642288,18.64964886,145.32,145.3,6.88231245]
[1746507642465,28.01384246,145.32,145.3,6.88231245]
[1746507643568,18.64964886,145.32,145.3,6.88231245]
[1746507646487,28.01384246,145.32,145.28,13.24]
[1746507646671,9.3641936,145.3,145.28,13.24]
[1746507646873,28.01384246,145.29,145.28,13.24]
[1746507647386,18.64964886,145.29,145.28,13.24]
[1746507648084,18.64964886,145.29,145.28,20.12325991]
[1746507653089,9.3641936,145.31,145.28,20.12325991]